{"text_format":"1","workbook":"xlsx","n_sheets":2,"sheets":["Tipsene","Stillingen"],"not_rendered":{"charts":0,"images":0,"macros":1,"external_links":0,"defined_names":0,"comments":0,"pivot_tables":0},"unopened":[],"bounds":{"document_bytes":16777216,"sheet_cells":100000,"rows_first":2000,"rows_last":500,"rows_between":2000,"halvings":0,"cell_chars":16384,"cell_head_chars":4096},"cells_cut":0,"cells_raw":0,"read":"whole","date_system":"1900"}

{"sheet":"Tipsene","index":0,"n_rows":46,"n_cols":62,"rows_kept":46,"cut":false,"hidden":false,"merged":[]}
["Øvelse","Dato","Anders Auestad",{"$f":"SUM(D2:D43)","v":165},"Audun Tyssøy",{"$f":"SUM(F2:F43)","v":143},"Bjørn Erik Hansen",{"$f":"SUM(H2:H43)","v":168},"Douglas Murphy",{"$f":"SUM(J2:J43)","v":143},"Einar Matre",{"$f":"SUM(L2:L43)","v":154},"Erlend F. Matre",{"$f":"SUM(N2:N43)","v":164},"Geir Auestad",{"$f":"SUM(P2:P43)","v":156},"Håkon Austrheim",{"$f":"SUM(R2:R43)","v":204},"Herman Austrheim",{"$f":"SUM(T2:T43)","v":138},"Hilde Storbakken",{"$f":"SUM(V2:V43)","v":86},"Ivar Areklett",{"$f":"SUM(X2:X43)","v":188},"Johannes Austrheim",{"$f":"SUM(Z2:Z43)","v":147},"Jørgen Ohm",{"$f":"SUM(AB2:AB43)","v":157},"Jørgen Voilås",{"$f":"SUM(AD2:AD43)","v":119},"Kjell Inge Ingebrigtsen",{"$f":"SUM(AF2:AF43)","v":178},"Kristian Røvang",{"$f":"SUM(AH2:AH43)","v":141},"Leif Andre Brekke",{"$f":"SUM(AJ2:AJ43)","v":182},"Magne Melkevik",{"$f":"SUM(AL2:AL43)","v":169},"Martin Austrheim",{"$f":"SUM(AN2:AN43)","v":175},"Morten Løvik",{"$f":"SUM(AP2:AP43)","v":153},"Nikolai Ellingsen",{"$f":"SUM(AR2:AR43)","v":159},"Oddve Solberg",{"$f":"SUM(AT2:AT43)","v":158},"Onar Ohm Børretzen",{"$f":"SUM(AV2:AV43)","v":159},"Robert Aak Eide",{"$f":"SUM(AX2:AX43)","v":181},"Sigurd S. Staveland",{"$f":"SUM(AZ2:AZ43)","v":160},"Terje Osmundsen",{"$f":"SUM(BB2:BB43)","v":172},"Tobby Voilås",{"$f":"SUM(BD2:BD43)","v":169},"Toralf Geitung",{"$f":"SUM(BF2:BF43)","v":159},"Tore Geitung",{"$f":"SUM(BH2:BH43)","v":157},"Torgeir Katla",{"$f":"SUM(BJ2:BJ43)","v":169}]
["Langrenn damer duathlon","2022-02-05","Frida Karlsson",1,"Diggins",1,"Johaug",7,"Frida Karlsson",1,"Frida Karlsson",1,"Frida Karlsson",1,"Johaug",7,"Johaug",7,"Therese Johaug",7,"Maiken C. Falla",0,"Johaug",7,"Johaug",7,"Therese Johaug",7,"Therese Johaug",7,"Johaug",7,"Johaug",7,"Johaug",7,"Therese Johaug",7,"Therese Johaug",7,"Johaug",7,"Therese Johaug",7,"Therese Johaug",7,"Therese Johaug",7,"Johaug",7,"Johaug",7,"Johaug",7,"Karlsson",1,"Therese Johaug",7,"Therese Johaug",7,"Frida Karlsson",1]
["Skiskyting mix stafett","2022-02-05","Frankrike",5,"Frankrike",5,"Frankrike",5,"Norge",7,"Norge",7,"Norge",7,"Norge",7,"Norge",7,"Norge",7,"Frankrike",5,"Norge",7,"Norge",7,"Norge",7,"Norge",7,"Norge",7,"Norge",7,"Norge",7,"Norge",7,"Norge",7,"Norge",7,"Norge",7,"Norge",7,"Norge",7,"Frankrike",5,"Norge",7,"Norge",7,"Frankrike",5,"Norge",7,"Norge",7,"Frankrike",5]
["Hopp normal bakke kvinner","2022-02-05","Althaus",5,"Ursa Bogataj",7,"Althaus",5,"Katharina Althus",5,"Katharina Althaus",5,"Sara Takanashi",1,"Takanashi",1,"Takanashi",1,"Katharina Althaus",5,"Marita Kramer",0,"Kramer",0,"Althaus",5,"Katharina Althaus",5,"Marita Kramer",0,"S. Takanashi",1,"Kriznar",3,"Takanashi",1,"Ema klinec",1,"Sara Takanashi",1,"Kriznar",3,"Sara Takanshi",1,"Katharina Althaus",5,"Kriznar",3,"Takanashi",1,"Takanashi",1,"Kriznar",3,"K Althaus",5,"Sara Takanashi",1,"Marita Kramer",0,"Katharina Althaus",5]
["Alpint, utfor menn","2022-02-06","Feuz",7,"Dominik Paris",1,"Feuz",7,"Aleksander Aamodt Kilde",1,"Aleksander Aamodt Kilde",1,"Beat Feuz",7,"Kilde",1,"Kilde",1,"A. A. Kilde",1,"Marco Odermatt",0,"Kilde",1,"Kilde",1,"Aleksander Aamodt Kilde",1,"Dominik Paris",1,"Aamodt Kilde",1,"Odermatt",0,"Aamodt Kilde",1,"Aamodt Kilde",1,"Aleksander Aamodt Kilde",1,"Odermatt",0,"Matthias Meyer",3,"Aleksander Aamodt Kilde",1,"Kilde",1,"Kilde",1,"Kilde",1,"Feuz",7,"Feuz",7,"Aleksander Kilde",1,"Aleksander Aamodt Kilde",1,"Alexander Aamodt Kilde",1]
["Langrenn menn duathlon","2022-02-06","Klæbø",0,"Bolsjunov",7,"Klæbo",0,"Johannes Høsflot Klæbo",0,"Johannes Høstflot Klæbo",0,"Johannes Høstflot Klæbo",0,"Klæbo",0,"Bolsjunov",7,"J. H. Klæbo",0,"Hans Christer Holund",1,"Bolsjunov",7,"Klæbo",0,"Johannes Høsflot Klæbo",0,"Klæbo",0,"Klæbo",0,"Klæbo",0,"Klæbo",0,"Klæbo",0,"Johannes Høsflot Klæbo",0,"Klæbo",0,"Johannes Høsflot Klæbo",0,"Johannes Høsflot Klæbo",0,"Johannes H. Klæbo",0,"Bolshunov",7,"Klæbo",0,"Klæbo",0,"Klæbo",0,"Aleksander Bolsjhunov",7,"Johannes Høsflot Klæbo",0,"Johannes Klæbo",0]
["Hopp normal bakke menn","2022-02-06","Kobayashi",7,"Geiger",0,"R. Kabayashi",7,"Ryoyu Kobayashi",7,"Ryoyu Kobayashi",7,"Karl Geiger",0,"Granerud",0,"Kobayashi",7,"Marius Lindvik",0,"Karl Geiger",0,"Lindvik",0,"Lindvik",0,"Ryoyu Kobayashi",7,"Karl Geiger",0,"R. Kobayashi",7,"Kobayashi",7,"Kobayashi",7,"Lindvik",0,"Ryou Kobayashi",7,"Geiger",0,"Ryoyu Kobayashi",7,"Karl Geiger",0,"Kobayashi",7,"Kobayashi",7,"Kobayashi",7,"R. Kobayashi",7,"Kobayashi",7,"Karl Geiger",0,"Halvor Egner Granerud",0,"Ruoyu Kobayashi",7]
["Alpint damer storslalåm","2022-02-07","Hector",7,"Shiffrin",0,"T. Worley",0,"Mikaela Shiffrin",0,"Mikaela Shiffrin",0,"Mikaela Shiffrin",0,"Mikaela Shiffrin",0,"Hector",7,"Tessa Worley",0,"Mikaela Shiffrin",0,"Hector",7,"Hecktor",7,"Mikaela Shifrinn",0,"Mikaela Shiffrin",0,"Shiffrin",0,"Shiffrin",0,"Shiffrin",0,"Sara Hector",7,"Sara Hector",7,"Shiffrin",0,"Mikaela Shiffrin",0,"Sara Hector",7,"Petra Vlhova",0,"Hector",7,"Vlhová",0,"Shiffrin",0,"Shiffrin",0,"Petra Vlhova",0,"Sara Hector",7,"Mikaela Shiffrin",0]
["Skiskyting damer 15 km","2022-02-07","H.Øberg",0,"Røiseland",3,"Davidova",1,"Tirill Ekhoff",0,"Marte Olsbu Røiseland",3,"Marte Olsbu Røiseland",3,"Olsbu",3,"Røiseland",3,"Marte Olsbu Røiseland",3,"Marte Olsbu Røiseland",3,"Røiseland",3,"Røiseland",3,"Hanna Öberg",0,"Julia Simon",0,"Røiseland",3,"Tandrevold",0,"Røiseland",3,"Røiseland",3,"Marte Olsbu Røiseland",3,"Bouchet *",0,"Marte Olsbu Røiseland",3,"Marketa Davidova",1,"Marketa Davidova",1,"Elvira Øberg",0,"Hauser",0,"Røiseland",3,"Olsbu Røisland",3,"Marte O. Røiseland",3,"Marte Olsbu Røiseland",3,"Alimbekeva",1]
["Hopp blandet lagkonkurranse","2022-02-07","Tyskland",0,"Tyskland",0,"Tyskland",0,"Tyskland",0,"Tyskland",0,"Tyskland",0,"Slovenia",7,"Slovenia",7,"Slovenia",7,"Norge",0,"Slovenia",7,"Østerrike",1,"Tyskland",0,"Østerike",1,"Østerrike",1,"Sveits",0,"Slovenia",7,"Tyskland",0,"Slovenia",7,"Slovenia",7,"Tyskland",0,"Slovenia",7,"Tyskland ",0,"Slovenia",7,"Slovenia",7,"Norge",0,"Tyskland",0,"Tyskland",0,"Norge",0,"Slovenia",7]
["Alpint Super G- menn","2022-02-08","Odermatt",0,"Kilde",3,"Kilde",3,"Matthias Mayer",7,"Aleksander Aamodt Kilde",3,"Aleksander Aamodt Kilde",3,"Odermatt",0,"Odermatt",0,"A. A. Kilde",3,"Aleksander A. Kilde",3,"Kilde",3,"Kilde",3,"Marco Odermatt",0,"Marco Odermatt",0,"Odermatt. M",0,"Kilde",3,"Odermatt",0,"Aamodt Kilde",3,"Aleksander Aamodt Kilde",3,"Kilde",3,"Aleksander Aamodt Kilde",3,"Marco Odermatt",0,"Marco Odermatt",0,"Odermatt",0,"Odermatt",0,"Aamodt Kilde",3,"A. Kilde",3,"Aleksander Kilde",3,"Aleksander Aamodt Kilde",3,"Marco Odermatt",0]
["Langrenn damer sprint fri","2022-02-08","Dahlqvist",5,"Hagstrøm",0,"Dahlqvist",5,"Maja Dahlqvist",5,"Jonna Sundling",7,"Maja Dahlqvist",5,"Dahlqvist",5,"Sundling",7,"Maja Dahlqvist",5,"Therese Johaug",0,"Dahlqvist",5,"Dahlqvist",5,"Maja Dahlqvist",5,"Maja Dahlqvist",5,"M. Dahlquist",5,"Dahlqvist",5,"Dahlqvist",5,"Dahlquist",5,"Maja Dahlquist",5,"Dahlquist",5,"Maja Dahlqvist",5,"Maja Dahlqvist",5,"Maja Dahlqvist",5,"Maja Dahlqvist",5,"Diggins",3,"Dahlquist",5,"M dahlquist",5,"Maja Dahlqvist",5,"Jonna Sundling",7,"Maja Dahlquist",5]
["Langrenn menn sprint fri","2022-02-08","Klæbo",7,"Klæbo",7,"Klæbo",7,"Johannes Høsflot Klæbo",7,"Johannes Høstflot Klæbo",7,"Johannes Høstflot Klæbo",7,"Klæbo",7,"Klæbo",7,"J. H. Klæbo",7,"Sergej Ustjugov",0,"Klæbo",7,"Klæbo",7,"Johannes Høsflot Klæbo",7,"Klæbo",7,"Klæbo",7,"Klæbo",7,"Klæbo",7,"Klæbo",7,"Johannes Høsflot Klæbo",7,"Klæbo",7,"Johannes Høsflot Klæbo",7,"Johannes Høsflot Klæbo",7,"Johannes H. Klæbo",7,"Klæbo",7,"Klæbo",7,"Klæbo",7,"Klæbo",7,"Johannes H. Klæbo",7,"Johannes Høsflot Klæbo",7,"Johannes Klæbo",7]
["Skiskyting menn 20 km","2022-02-08","Lægreid",0,"Doll",1,"Lægreid",0,"Sturla Holm Lægereid",0,"Sturla Holm Lægreid",0,"Sturla Holm Lægreid",0,"Lægreid",0,"Lægreid",0,"Eduard Latypov",0,"Tarjei Bø",0,"Fillon Maillet",7,"Johannes T.  Bø",3,"Tarjei Bø",0,"Tarjei Bø",0,"Fillon Maillet",7,"Lægreid",0,"Lægreid",0,"Fillon Maillet",7,"Sturla Holm Lægreid",0,"Samuelsson",0,"Sturla Holm Lægreid",0,"Anton Babikov",0,"Tarjei Bø",0,"Fillon Maillet",7,"Tarjei Bøe",0,"JT Bøe",3,"QF Maillet",7,"Sturla H. Lægreid",0,"Sturla Holm Lægreid",0,"Sturla Holm Lægreid",0]
["Alpint, slalåm kvinner","2022-02-09","Shiffrin",0,"Vlhova",7,"Vlhova",7,"Mikaela Shiffrin",0,"Lena Duerr",1,"Petra Vlhova",7,"Vlhova",7,"Vlhova",7,"Mikaela Shiffrin",0,"Petra Vlhova",7,"Vlhová",7,"Schiffrin",0,"Petra Vlhova",7,"Petra Vihova",7,"Vlhova Petra",7,"Shiffrin",0,"Vlhova",7,"Sara Hector",0,"Mikaela Shiffrin",0,"Vlhova",7,"Petra Vlhova",7,"Petra Vilhová",7,"Shiffrin ",0,"Vlhova",7,"Shiffrin",0,"Vlhova",7,"Petra Vlhova",7,"Petra Vlhova",7,"Petra Vlhova",7,"Petra Vhlova",7]
["Kombinert normal  bakke menn","2022-02-09","Lamparter",1,"Lamparter",1,"Riiber",0,"Jarl Magnis Riiber",0,"Jarl Magnus Riiber",0,"Johannes Lamparter",1,"Geiger",7,"Lamparter",1,"Johannes Lamparter",1,"Jarl Magnus Riiber",0,"Lamparter",1,"Lamparter",1,"Vinzenz Geiger",7,"Jørgen Graabak",5,"Lamparter",1,"Lamparter",1,"Lamparter",1,"Lamparter",1,"Johannes Lamparter",1,"Lamparter",1,"Johannes Lamparter",1,"Vinzenz Geiger",7,"Vinzenz Geiger",7,"Lamparter",1,"Lamparter",1,"Riiber",0,"Gråbakk",5,"Jarl M. Riiber",0,"Johannes Lamparter",1,"Jarl Magnus Riiber",0]
["Alpint, kombinasjon menn","2022-02-10","Meillard",0,"Odermatt",0,"Pinturault",0,"Vincent Kriechmayer",0,"Marco Odermatt",0,"Alexis Pinturault",0,"Odermatt",0,"Odermatt",0,"Alexis Pinturault",0,"Matthias Mayer",0,"Odermatt",0,"Kilde",5,"Alexis Pinturault",0,"Matthias Mayer",0,"Odermatt.M",0,"Feuz",0,"Pinturault ",0,"Aamodt Kilde",5,"Loic Meillard",0,"Pinturault",0,"Loic Meillard",0,"Alexis Pinturault",0,"Pinturault ",0,"Alexis Pinturault",0,"Meillard",0,"Odermatt",0,"Odermat",0,"Marco Odermatt",0,"Marco Odermatt",0,"Alexis Pinturault",0]
["Langrenn damer 10 km klassisk","2022-02-10","Johaug",7,"Johaug",7,"Johaug",7,"Therese Johaug",7,"Therese Johaug",7,"Therese Johaug",7,"Johaug",7,"Johaug",7,"Therese Johaug",7,"Jessie Diggins",0,"Johaug",7,"Johaug",7,"Therese Johaug",7,"Johaug",7,"Johaug",7,"Johaug",7,"Johaug",7,"Therese Johaug",7,"Therese Johaug",7,"Karlsson",0,"Therese Johaug",7,"Therese Johaug",7,"Therese Johaug",7,"Johaug",7,"Johaug",7,"Johaug",7,"T. Johaug",7,"Therese Johaug",7,"Therese Johaug",7,"Therese Johaug",7]
["Alpint, Super G- kvinner","2022-02-11","Brignone",0,"Brignone",0,"Gut-Behrami",7,"Frederica Brignone",0,"Sara Hector",0,"Elena Curtoni",0,"Brignone",0,"Brignone",0,"Lara Gut-Behrami",7,"Sofia Goggia",0,"Brignone",0,"Brignone",0,"Federica Brignone",0,"Corinne Suter",0,"Brignone",0,"Brignone",0,"Brignone",0,"Goggia",0,"Frederica Brignone",0,"Gut-Behrami",7,"Lara Gut-Behrami",7,"Elena Curtoni",0,"Shiffrin ",0,"Hector",0,"Brignone",0,"Brigone",0,"Lara Gut Behrami",7,"Lara Gut",7,"Sofia Goggia",0,"Lara Gut Behrami",7]
["Langrenn menn 15 km klassisk","2022-02-11","Bolshunov",5,"Niskanen",7,"Holund",1,"Alexander Bolshunov",5,"Johannes Høstflot Klæbo",3,"Iivo Niskanen",7,"Niskanen",7,"Niskanen",7,"Iivo Niskanen",7,"Johannes H. Klæbo",3,"Bolsjunov",5,"Bolsjonov",5,"Johannes Høsflot Klæbo",3,"Klæbo",3,"Iivo Niskanen",7,"Bolshunov",5,"Niskanen",7,"Niskanen",7,"Aleksander Bolshunov",5,"Niskanen",7,"Ivo Niskanen",7,"Johannes Høsflot Klæbo",3,"Bolsjunov ",5,"Niskanen",7,"Niskanen ",7,"Niskanen",7,"Niskanen",7,"Aleksander Bolsjhunov",5,"Johannes Høsflot Klæbo",3,"Ivo Niskanen",7]
["Skiskyting damer sprint","2022-02-11","Røiseland",7,"Elvira Øberg",5,"E. Øberg",5,"Elvira Øberg",5,"Dorothea Wierer",3,"Elvira Øberg",5,"Elvira Øberg",5,"Elvira Øberg",5,"Justine Braisaz",0,"Elvira Öberg",5,"Røiseland",7,"Elvira Øberg",5,"Elvira Öberg",5,"Tiril Eckhoff",0,"Elvira Øberg",5,"Røiseland",7,"Elvira Øberg",5,"Elvira Øberg ",5,"Elvira Øberg",5,"Røiseland",7,"Elvira Øberg",5,"Dzinara Alimbekava",0,"Marthe Olsbu R",7,"Elvira Oeberg",5,"Olsbu Røiseland",7,"E. Øberg",5,"Olsbu Røisland",7,"Marte O. Røiseland",7,"Marte Olsbu Røiseland",7,"Marte Olsbu Røiseland",7]
["Langrenn damer stafett","2022-02-12","Sverige",3,"Sverige",3,"Sverige",3,"Norge",1,"Sverige",3,"Sverige",3,"Sverige",3,"Sverige",3,"Sverige",3,"Norge",1,"Sverige",3,"Norge",1,"Sverige",3,"Norge",1,"Sverige",3,"Sverige",3,"Sverige",3,"Sverige",3,"Sverige",3,"Norge ",1,"Sverige",3,"Norge",1,"Sverige",3,"Sverige",3,"Norge",1,"Sverige",3,"sverige",3,"Norge",1,"Norge",1,"Sverige",3]
["Skiskyting menn sprint","2022-02-12","Loginov",0,"Johannes T. Bø",7,"Johannes T. Bøe",7,"Quentin Fillon Maillet",5,"Johannes Thingnes Bøe",7,"Johannes Thingnes Bøe",7,"Fillon Maillet",5,"Fillon Mailett",5,"Johannes Thingnes Bø",7,"Quentin F. Maillet",5,"Fillon Maillet",5,"Malliet",5,"Johannes Thingnes Bø",7,"Johannes Thingnes Bø",7,"Samuelson",1,"Samuelsson",1,"Fillon Maillet",5,"Johannes Bø",7,"Sebastian Samuelsson",1,"Johannes T.Bø",7,"Johannes Thingnes Bø",7,"Quentin Fillon Maillet",5,"Sebastian Samuelsson ",1,"Fillon Maillet",5,"Samuelsson",1,"Fillon Maillet",5,"tarjei Bøe",3,"Johannes T. Bø",7,"Quentin Fillon Maillet",5,"Johannes Thingnes Bø",7]
["Hopp menn stor bakke","2022-02-12","Kobayashi",5,"Lindvik",7,"Geiger",3,"Halvor Egner Granerud",0,"Marius Lindvik",7,"Marius Lindvik",7,"Kobayashi",5,"Lindvik",7,"Ryoyu Kobayashi",5,"Halvor E. Granerud",0,"Lindvik",7,"Lindvik",7,"Ryoyu Kobayashi",5,"Geiger",3,"M.Lindvik",7,"Kobayashi",5,"Lindvik",7,"Riyo kobayashi",5,"Marius Lindvik",7,"R.Kobayashi",5,"Karl Geiger",3,"Anze Lanisek",0,"Lindvik ",7,"Kobayashi",5,"Geiger",3,"Lindvik",7,"Lindvik",7,"Karl Geiger",3,"Ryoyu Kobayashi",5,"Karl Geiger",3]
["Alpint, storslalåm menn","2022-02-13","Odermatt",7,"Odermatt",7,"Odermatt",7,"Marco Odermatt",7,"Marco Odermatt",7,"Marco Odermatt",7,"Odermatt",7,"Odermatt",7,"Marco Odermatt",7,"Manuel Feller",0,"Odermatt",7,"Kristoffersen",0,"Marco Odermatt",7,"Loic Mellard",0,"Odermatt",7,"Kristoffersen",0,"Odermatt",7,"Marco Odermatt",7,"Marco Odermatt",7,"Odermatt",7,"Marco Odermatt",7,"Marco Odermatt",7,"Marco Odermatt",7,"Odermatt",7,"Odermatt",7,"Odermatt",7,"H. Kristoffersen",0,"Marco Odermatt",7,"Marco Odermatt",7,"Marco Odermatt",7]
["Langrenn menn stafett","2022-02-13","Russland",7,"Norge",5,"Norge",5,"Russland",7,"Norge",5,"Norge",5,"Norge",5,"Norge",5,"Norge",5,"Norge",5,"Norge",5,"Norge",5,"Norge",5,"Norge",5,"Norge",5,"Norge",5,"Norge",5,"Norge",5,"Norge",5,"Russland",7,"Norge",5,"Norge",5,"Norge",5,"Norge",5,"Norge",5,"Norge",5,"Norge",5,"Norge",5,"Norge",5,"Norge",5]
["Skiskyting kvinner jaktstart","2022-02-13","Røiseland",7,"Røiseland",7,"Røyseland",7,"Marte Olsbu Røiseland",7,"Tiril Eckhoff",3,"Marte Olsbu Røiseland",7,"Olsbu",7,"Røiseland",7,"Justine Braisaz",0,"Marte Olsbu Røiseland",7,"Røiseland",7,"Røiseland",7,"Marte Olsbu Røiseland",7,"Tiril Eckhoff",3,"Røiseland",7,"Elvira Öberg",5,"Røiseland",7,"Røisland",7,"Marte Olsbu Røiseland",7,"Røiseland",7,"Marte Olsbu Røiseland",7,"Marte Røiseland Olsbu",7,"Marte Olsbu R",7,"Elvira Oeberg",5,"Olsbu Røiseland",7,"Røiseland",7,"Julia Simon",0,"Marte O. Røiseland",7,"Marte Olsbu Røiseland",7,"Elvira Øeberg",5]
["Skiskyting menn jaktstart","2022-02-13","Maillet",7,"Tarjei Bøe",5,"Johannes T. Bøe",1,"Johannes Thingenes Bøe",1,"Tarjei Bøe",5,"Quentin Fillon Mailet",7,"Fillon maillet",7,"Fillon Mailett",7,"Johannes Thingnes Bø",1,"Quentin F. Maillet",7,"Fillon Maillet",7,"Johannes Bø",1,"Johannes Thingnes Bø",1,"Tarjei Bø",5,"Thingnes Bø",1,"Maillet",7,"Fillon Maillet",7,"Fillon Maillet",7,"Quentin Fillon Mailet",7,"Fillion Maillet",7,"Quentin Fillon Maillet",7,"Emilien Jaquelin",0,"Fillon Maillet ",7,"Fillon Maillet",7,"Fillon Maillet",7,"JT Bøe",1,"Q F Maillet",7,"Johannes T. Bø",1,"Quentin Fillon Maillet",7,"Quentin Fillon Maillet",7]
["Hopp, laghopp menn stor bakke","2022-02-14","Slovenia",5,"Norge",1,"Tyskland",3,"Tyskland",3,"Norge",1,"Slovenia",5,"Tyskland",3,"Østerrike",7,"Østerrike",7,"Norge",1,"Tyskland",3,"Norge",1,"Norge",1,"Norge",1,"Norge",1,"Tyskland",3,"Tyskland",3,"Tyskland",3,"Slovenia",5,"Norge ",1,"Tyskland",3,"Tyskland",3,"Norge",1,"Tyskland",3,"Norge",1,"Norge",1,"Tyskland",3,"Tyskland",3,"Norge",1,"Tyskland",3]
["Alpint, utfor damer","2022-02-15","Suter",7,"Mowinckel",0,"Goggia",5,"Sofia Goggia",5,"Mirjam Puschner",0,"Corinne Suter",7,"Goggia",5,"Suter",7,"Lara Gut-Behrami",0,"Mikaela Shiffrin",0,"Goggia",5,"Brignone",0,"Corinne Suter",7,"Corinne Suter",7,"C.Suter",7,"Suter",7,"Suter",7,"Goggia",5,"Corinne Suter",7,"Suter",7,"Lara Gut-Behrami",0,"Sofia Goggia",5,"Gut-Behrami ",0,"Shiffrin",0,"Gut-Berhami",0,"Suter",7,"C Suter",7,"Lara Gut",0,"Sofia Goggia",5,"Sofia Goggia",5]
["Skiskyting stafett menn","2022-02-15","Norge",7,"Frankrike",5,"Norge",7,"Norge",7,"Norge",7,"Frankrike",5,"Norge",7,"Norge",7,"Norge",7,"Russland",3,"Norge",7,"Norge",7,"Norge",7,"Norge",7,"Norge",7,"Norge",7,"Norge",7,"Norge",7,"Norge",7,"Frankrike",5,"Norge",7,"Norge",7,"Norge",7,"Norge",7,"Norge",7,"Norge",7,"Norge",7,"Norge",7,"Norge",7,"Norge",7]
["Kombinert, stor bakke menn","2022-02-15","Lamparter",1,"Frenzel",0,"Riiber",0,"Johannes Lamparter",1,"Jarl Magnus Riiber",0,"Vincent Geiger",0,"Lamparter",1,"Lamparter",1,"Johannes Lamparter",1,"Jarl Magnus Riiber",0,"Lamparter",1,"Lamparter",1,"Vinzenz Geiger",0,"Jørgen Graabak",7,"Graabak",7,"Geiger",0,"Riiber",0,"Riiber",0,"Vinzenz Geiger",0,"Lamparter",1,"Jarl Magnus Riiber",0,"Johannes Lamparter",1,"Johannes Lamparter ",1,"Riiber",0,"Lamparter",1,"Riiber",0,"V Geiger",0,"Jarl M. Riiber",0,"Vinzenz Geiger",0,"Johannes Lamparter",1]
["Alpint, slalåm menn","2022-02-16","Foss-Solevåg",3,"Solevåg",3,"Kristoffersen",1,"Lucas Braathen",0,"Henrik Kristtoffersen",1,"Sebastian Foss Solevåg",3,"Feller",0,"Noel",7,"Lucas Braathen",0,"Lucas Braathen",0,"Kristoffersen",1,"Kristoffersen",1,"Henrik Kristoffersen",1,"Marco Schwarz",0,"Clement Noel",7,"Braathen",0,"Solevåg",3,"Bråthen",0,"Clement Noel",7,"Braathen",0,"Lucas Braathen",0,"Lucas Braathen",0,"Lucas Braathen ",0,"Feller",0,"Noël",7,"Kristoffersen",1,"L Braathen",0,"Lucas Braaten",0,"Lucas Braathen",0,"Clement Noel",7]
["Skiskyting, stafett kvinner","2022-02-16","Norge",1,"Frankrike",1,"Frankrike",1,"Norge",1,"Sverige",7,"Norge",1,"Frankrike",1,"Sverige",7,"Frankrike",1,"Sverige",7,"Sverige",7,"Norge",1,"Sverige",7,"Frankrike",1,"Sverige",7,"Sverige",7,"Sverige",7,"Sverige",7,"Sverige",7,"Frankrike",1,"Norge",1,"Frankrike",1,"Frankrike ",1,"Sverige",7,"Norge",1,"Sverige",7,"Frankrike",1,"Norge",1,"Norge",1,"Sverige",7]
["Langrenn damer lagsprint klassisk","2022-02-16","Sverige",5,"Sverige",5,"Sverige",5,"Sverige",5,"Sverige",5,"Sverige",5,"Sverige",5,"Sverige",5,"Sverige",5,"Norge",0,"Sverige",5,"Sverige",5,"Sverige",5,"Norge",0,"Sverige",5,"Sverige",5,"Sverige",5,"Sverige",5,"Sverige",5,"Sverige",5,"Sverige",5,"Sverige",5,"Sverige ",5,"Sverige",5,"Sverige",5,"Sverige",5,"sverige",5,"Sverige",5,"Sverige",5,"Sverige",5]
["Langrenn menn lagsprint klassisk","2022-02-16","Norge",7,"Norge",7,"Norge",7,"Russland",3,"Norge",7,"Norge",7,"Norge",7,"Norge",7,"Norge",7,"Norge",7,"Norge",7,"Norge",7,"Norge",7,"Norge",7,"Norge",7,"Norge",7,"Norge",7,"Norge",7,"Norge",7,"Norge",7,"Norge",7,"Norge",7,"Norge",7,"Norge",7,"Norge",7,"Norge",7,"Norge",7,"Norge",7,"Norge",7,"Norge",7]
["Alpint, kombinasjon kvinner","2022-02-17","Shiffrin",0,"Vlhova",0,"Shiffrin",0,"Mikaela Shiffrin",0,"Mikaela Shiffrin",0,"Mikaela Shiffrin",0,"Vlhova",0,"Shiffrin",0,"Mikaela Shiffrin",0,"Sofia Goggia",0,"Shiffrin",0,"Schiffrin",0,"Mikaela Shifrinn",0,"Corinne Suter",0,"M. Shiffrin",0,"Vlhova",0,"Shiffrin",0,"Shiffrinn",0,"Mikaela Shiffrin",0,"Shiffrin",0,"Mikaela Shiffrin",0,"Mikaela Shiffrin",0,"Shiffrin ",0,"Shiffrin",0,"Shiffrin",0,"Shiffrin",0,"M Shiffrin",0,"Michaela Shifferin",0,"Mikaela Shiffrin",0,"Mikaela Shiffrin",0]
["Kombinert, stor bakke lag menn","2022-02-17","Tyskland",5,"Norge",7,"Norge",7,"Norge",7,"Norge",7,"Tyskland",5,"Tyskland",5,"Tyskland",5,"Tyskland",5,"Norge",7,"Tyskland",5,"Norge",7,"Tyskland",5,"Norge",7,"Tyskland",5,"Tyskland",5,"Tyskland",5,"Norge",7,"Tyskland",5,"Tyskland",5,"Tyskland",5,"Tyskland",5,"Tyskland ",5,"Tyskland",5,"Tyskland",5,"Norge",7,"Norge",7,"Norge",7,"Norge",7,"Tyskland",5]
["Skiskyting fellesstart kvinner","2022-02-18","Røiseland",3,"Tandrevold",0,"Røyseland",3,"Tirill Ekhoff",5,"Marte Olsbu Røiseland",3,"Hanna Øberg",0,"Marthe Olsbu",3,"Alimbekava",0,"Marte Olsbu Røiseland",3,"Marte Olsbu Røiseland",3,"Røiseland",3,"Tirill Eckhof",5,"Marte Olsbu Røiseland",3,"Mona Brorsson",0,"Hanna Øberg",0,"Tandrevold",0,"Røiseland",3,"Røiseland",3,"Kristina Reztova",1,"Reztsova",1,"Dorothea Wierer",0,"Dorothea Wirer",0,"Marte Olsbu R",3,"Elvira Oeberg",0,"Eckhoff",5,"Røiseland",3,"D Wierer",0,"Marte O. Røiseland",3,"Marte Olsbu Røiseland",3,"Marte Olsbu Røiseland",3]
["Skiskyting fellesstart menn","2022-02-18","J.T Bøe",7,"Lægreid",1,"Quentin",1,"Johannes Thingenes Bøe",7,"Johannes Thingnes Bøe",7,"Quentin Fillon Mailet",1,"Fillon Maillet",1,"Fillon Mailett",1,"Emilien Jacquelin",0,"Tarjei Bø",0,"Fillon Maillet",1,"Tarjei Bøe",0,"Quentin Fillon Maillet",1,"Tarjei Bø",0,"Thingnes Bø",7,"Tarjei Bø",0,"Fillon Maillet",1,"Fillon Maillet",1,"Tarjei Bø",0,"Fillion Maillet",1,"Quentin Fillon Maillet",1,"Johannes Thingnes Bø",7,"Johannes T. Bø",7,"Fillon Maillet",1,"Thingnes Bøe",7,"JT Bøe",7,"J.T. Bøe",7,"Tarjei Bø",0,"Johannes Thingnes Bø",7,"Sebastian Samuelsson",0]
["Alpint, lagkonkurranse mix","2022-02-19","Østerike",7,"Norge",3,"Østerrike",7,"Italia",0,"Norge",3,"Østerrike",7,"Sveits",1,"Østerrike",7,"Sverige",0,"Norge",3,"Italia",0,"Østerrike",7,"Norge",3,"USA",1,"Østerrike",7,"Sveits",1,"Østerrike",7,"Norge",3,"Østerrike",7,"Norge",3,"Østerrike",7,"Østerrike",7,"Østerrike ",7,"Østerrike",7,"Østerrike",7,"Italia",0,"Norge",3,"Østerrike",7,"Norge",3,"Sveits",1]
["Langrenn 50 km fri fellesstart menn","2022-02-19","Klæbø",0,"Klæbo",0,"Bulsjunov",7,"Alexander Bolshunov",7,"Alexander Bolshunov",7,"Aleksander Bolsjunov",7,"Klæbo",0,"Bolsjunov",7,"H. C. Holund",0,"Simen H. Krüger",3,"Bolsjunov",7,"Klæbo",0,"Alexander Bolshunov",7,"Ivo Niskanen",0,"H.C Holund",0,"Bolshunov",7,"Bulsjunov",7,"Klæbo",0,"Johannes Høsflot Klæbo",0,"Holund",0,"Hans Christer Holund",0,"Alexander Bolshunov",7,"Bolsjunov ",7,"Bolshunov",7,"Bolshunov",7,"Klæbo",0,"HC Holund",0,"Aleksander Bolsjhunov",7,"Johannes Høsflot Klæbo",0,"Hans Christer Holund",0]
["Langrenn 30 km fri fellesstart kvinner","2022-02-20","Johaug",7,"Johaug",7,"Johaug",7,"Therese Johaug",7,"Therese Johaug",7,"Therese Johaug",7,"Johaug",7,"Johaug",7,"Therese Johaug",7,"Maja Dahlqvist",0,"Johaug",7,"Johaug",7,"Frida Karlsson",0,"Johaug",7,"Johaug",7,"Johaug",7,"Johaug",7,"Therese Johaug",7,"Therese Johaug",7,"Johaug",7,"Therese Johaug",7,"Therese Johaug",7,"Therese Johaug",7,"Johaug",7,"Johaug",7,"Johaug",7,"T. Johaug",7,"Therese Johaug",7,"Therese Johaug",7,"Therese Johaug",7]
["Antall øvelser tatt med i utregningen:",null,null,{"$f":"COUNT(D2:D43)","v":42},null,{"$f":"COUNT(F2:F43)","v":42},null,{"$f":"COUNT(H2:H43)","v":42},null,{"$f":"COUNT(J2:J43)","v":42},null,{"$f":"COUNT(L2:L43)","v":42},null,{"$f":"COUNT(N2:N43)","v":42},null,{"$f":"COUNT(P2:P43)","v":42},null,{"$f":"COUNT(R2:R43)","v":42},null,{"$f":"COUNT(T2:T43)","v":42},null,{"$f":"COUNT(V2:V43)","v":42},null,{"$f":"COUNT(X2:X43)","v":42},null,{"$f":"COUNT(Z2:Z43)","v":42},null,{"$f":"COUNT(AB2:AB43)","v":42},null,{"$f":"COUNT(AD2:AD43)","v":42},null,{"$f":"COUNT(AF2:AF43)","v":42},null,{"$f":"COUNT(AH2:AH43)","v":42},null,{"$f":"COUNT(AJ2:AJ43)","v":42},null,{"$f":"COUNT(AL2:AL43)","v":42},null,{"$f":"COUNT(AN2:AN43)","v":42},null,{"$f":"COUNT(AP2:AP43)","v":42},null,{"$f":"COUNT(AR2:AR43)","v":42},null,{"$f":"COUNT(AT2:AT43)","v":42},null,{"$f":"COUNT(AV2:AV43)","v":42},null,{"$f":"COUNT(AX2:AX43)","v":42},null,{"$f":"COUNT(AZ2:AZ43)","v":42},null,{"$f":"COUNT(BB2:BB43)","v":42},null,{"$f":"COUNT(BD2:BD43)","v":42},null,{"$f":"COUNT(BF2:BF43)","v":42},null,{"$f":"COUNT(BH2:BH43)","v":42},null,{"$f":"COUNT(BJ2:BJ43)","v":42}]
[]
["* To deltagere ved navn \"Bouchet\" i skiskyting 15 km, og det var den som var nederst i World Cup som kom på andreplass. Dermed får Morten 0 poeng."]

{"sheet":"Stillingen","index":1,"n_rows":31,"n_cols":6,"rows_kept":31,"cut":false,"hidden":false,"merged":[]}
["Nr.","Navn","P."]
[{"$f":"RANK(C2,C2:C31)","v":1},{"$f":"Tipsene!Q1","v":"Håkon Austrheim"},{"$f":"Tipsene!R1","v":204},null,null,"Du må selvsagt legge inn resultatene i tabellen på den første arkfanen for at dette skal virke."]
[{"$f":"RANK(C3,C2:C31)","v":2},{"$f":"Tipsene!W1","v":"Ivar Areklett"},{"$f":"Tipsene!X1","v":188}]
[{"$f":"RANK(C4,C2:C31)","v":3},{"$f":"Tipsene!AI1","v":"Leif Andre Brekke"},{"$f":"Tipsene!AJ1","v":182}]
[{"$f":"RANK(C5,C2:C31)","v":4},{"$f":"Tipsene!AW1","v":"Robert Aak Eide"},{"$f":"Tipsene!AX1","v":181}]
[{"$f":"RANK(C6,C2:C31)","v":5},{"$f":"Tipsene!AE1","v":"Kjell Inge Ingebrigtsen"},{"$f":"Tipsene!AF1","v":178}]
[{"$f":"RANK(C7,C2:C31)","v":6},{"$f":"Tipsene!AM1","v":"Martin Austrheim"},{"$f":"Tipsene!AN1","v":175}]
[{"$f":"RANK(C8,C2:C31)","v":7},{"$f":"Tipsene!BA1","v":"Terje Osmundsen"},{"$f":"Tipsene!BB1","v":172}]
[{"$f":"RANK(C9,C2:C31)","v":8},{"$f":"Tipsene!AK1","v":"Magne Melkevik"},{"$f":"Tipsene!AL1","v":169}]
[{"$f":"RANK(C10,C2:C31)","v":8},{"$f":"Tipsene!BC1","v":"Tobby Voilås"},{"$f":"Tipsene!BD1","v":169},null,null,"Du får 7 poeng om ditt tips i en øvelse kommer på førsteplass."]
[{"$f":"RANK(C11,C2:C31)","v":8},{"$f":"Tipsene!BI1","v":"Torgeir Katla"},{"$f":"Tipsene!BJ1","v":169},null,null,"Andreplass gir 5 poeng."]
[{"$f":"RANK(C12,C2:C31)","v":11},{"$f":"Tipsene!G1","v":"Bjørn Erik Hansen"},{"$f":"Tipsene!H1","v":168},null,null,"Tredjeplass 3 poeng."]
[{"$f":"RANK(C13,C2:C31)","v":12},{"$f":"Tipsene!C1","v":"Anders Auestad"},{"$f":"Tipsene!D1","v":165},null,null,"Fjerde- til sjetteplass gir 1 poeng."]
[{"$f":"RANK(C14,C2:C31)","v":13},{"$f":"Tipsene!M1","v":"Erlend F. Matre"},{"$f":"Tipsene!N1","v":164}]
[{"$f":"RANK(C15,C2:C31)","v":14},{"$f":"Tipsene!AY1","v":"Sigurd S. Staveland"},{"$f":"Tipsene!AZ1","v":160}]
[{"$f":"RANK(C16,C2:C31)","v":15},{"$f":"Tipsene!AQ1","v":"Nikolai Ellingsen"},{"$f":"Tipsene!AR1","v":159}]
[{"$f":"RANK(C17,C2:C31)","v":15},{"$f":"Tipsene!AU1","v":"Onar Ohm Børretzen"},{"$f":"Tipsene!AV1","v":159}]
[{"$f":"RANK(C18,C2:C31)","v":15},{"$f":"Tipsene!BE1","v":"Toralf Geitung"},{"$f":"Tipsene!BF1","v":159}]
[{"$f":"RANK(C19,C2:C31)","v":18},{"$f":"Tipsene!AS1","v":"Oddve Solberg"},{"$f":"Tipsene!AT1","v":158}]
[{"$f":"RANK(C20,C2:C31)","v":19},{"$f":"Tipsene!AA1","v":"Jørgen Ohm"},{"$f":"Tipsene!AB1","v":157}]
[{"$f":"RANK(C21,C2:C31)","v":19},{"$f":"Tipsene!BG1","v":"Tore Geitung"},{"$f":"Tipsene!BH1","v":157}]
[{"$f":"RANK(C22,C2:C31)","v":21},{"$f":"Tipsene!O1","v":"Geir Auestad"},{"$f":"Tipsene!P1","v":156}]
[{"$f":"RANK(C23,C2:C31)","v":22},{"$f":"Tipsene!K1","v":"Einar Matre"},{"$f":"Tipsene!L1","v":154}]
[{"$f":"RANK(C24,C2:C31)","v":23},{"$f":"Tipsene!AO1","v":"Morten Løvik"},{"$f":"Tipsene!AP1","v":153}]
[{"$f":"RANK(C25,C2:C31)","v":24},{"$f":"Tipsene!Y1","v":"Johannes Austrheim"},{"$f":"Tipsene!Z1","v":147}]
[{"$f":"RANK(C26,C2:C31)","v":25},{"$f":"Tipsene!E1","v":"Audun Tyssøy"},{"$f":"Tipsene!F1","v":143}]
[{"$f":"RANK(C27,C2:C31)","v":25},{"$f":"Tipsene!I1","v":"Douglas Murphy"},{"$f":"Tipsene!J1","v":143}]
[{"$f":"RANK(C28,C2:C31)","v":27},{"$f":"Tipsene!AG1","v":"Kristian Røvang"},{"$f":"Tipsene!AH1","v":141}]
[{"$f":"RANK(C29,C2:C31)","v":28},{"$f":"Tipsene!S1","v":"Herman Austrheim"},{"$f":"Tipsene!T1","v":138}]
[{"$f":"RANK(C30,C2:C31)","v":29},{"$f":"Tipsene!AC1","v":"Jørgen Voilås"},{"$f":"Tipsene!AD1","v":119}]
[{"$f":"RANK(C31,C2:C31)","v":30},{"$f":"Tipsene!U1","v":"Hilde Storbakken"},{"$f":"Tipsene!V1","v":86}]